Cogmind - Beta 13 @@@ ROGUE MODE // 2024.04.10 @ 05:22:53 Player: BVrutally Odd Result: Destroyed by B-75 Beast with Heavy Plasma Cannon Performance ------------- Evolutions (4) 2000 Regions Visited (15) 3000 Robots Destroyed (158) 790 Value Destroyed (5356) 5356 Prototype IDs (37) 740 Alien Tech Used (0) 0 Bonus (1189) 1189 TOTAL SCORE: 13075 Bonus ------- Follower Combat Kills 289 Aligned with FarCom 300 Met Data Miner 300 Met Imprinter 300 Cogmind --------- Core Integrity 0/850 Matter 284/300 Energy 100/100 System Corruption 0% Temperature Cool (14) Movement Flying (34) Location -5/Proximity Caves Parts ------- > --- POWER (1) -------- (None) > --- PROPULSION (4) --- VTOL Module Nuclear Pulse Thruster > --- UTILITY (6) ------ Advanced Signal Interpreter Microactuators Hacking Suite Hacking Suite Makeshift Hacking Suite Improved Corruption Screen > --- WEAPON (4) ------- Power Maul > --- INVENTORY (5) ---- Advanced Hacking Suite Advanced System Shield Heavy Rocket Launcher Molecular Deconstructor Peak State ------------ > --- POWER ------------ Micro Nuclear Core > --- PROPULSION ------- Light Treads Advanced Treads Advanced Treads Improved Medium Treads > --- UTILITY ---------- Coolant Injector Huge Storage Unit Structural Scanner Hacking Suite Drone Bay Hacking Drone Bay > --- WEAPON ----------- Plasma Rifle AWS/Thermal Coil Gun > --- INVENTORY -------- Micro Nuclear Core Light Angular Momentum Engine Light Treads Improved Cooling System Coolant Injector Advanced Signal Interpreter Precision Energy Filter Improved Powered Armor Hacking Suite Hacking Suite Hacking Suite Makeshift Hacking Suite Advanced System Restoration Module Beamcaster Beamcaster Flak Gun Grenade Launcher Grenade Launcher Molecular Deconstructor Axe Ripper [Rating: 74] Favorites ----------- Power Light Ion Engine Engine Light Ion Engine Power Core Micro Nuclear Core Propulsion Light Treads Treads Light Treads Wheel Wheel Flight Unit Nuclear Pulse Thruster Utility Huge Storage Unit Device Coolant Injector Storage Huge Storage Unit Processor Advanced Signal Interpreter Hackware Hacking Suite Protection Light Armor Plating Weapon Beamcaster Energy Gun Beamcaster Energy Cannon Beam Cannon Ballistic Gun Autogun Launcher Grenade Launcher Special Weapon Molecular Deconstructor Impact Weapon Heavy Flail Slashing Weapon Axe Build | -11 -10 -10 -10 -9 -8 -7 -7 -7 -7 -6 -6 -6 -6 -6 -5 ------- Run | Yrd Mat Min Exi Min Mat Fac Low Low Zio Pro Fac Low Low Dat Pro Slots Evolved 8 | . . . . . 4 2 . . . . 2 . . . . Power . | . . . . . . . . . . . . . . . . Propulsion 2 | . . . . . 2 . . . . . . . . . . Utility 4 | . . . . . 1 2 . . . . 1 . . . . Weapon 2 | . . . . . 1 . . . . . 1 . . . . Parts Attached 166 | 6 6 . 1 . 18 12 2 11 4 28 36 14 23 . 5 Power 11 | 1 1 . . . 1 . . . 1 3 1 1 1 . 1 Engine 6 | 1 1 . . . . . . . 1 2 . . 1 . . Core 5 | . . . . . 1 . . . . 1 1 1 . . 1 Reactor . | . . . . . . . . . . . . . . . . Propulsion 40 | 2 2 . . . 8 1 . 5 . 7 8 5 1 . 1 Treads 35 | 2 2 . . . 8 1 . 5 . 7 7 3 . . . Leg . | . . . . . . . . . . . . . . . . Wheel 3 | . . . . . . . . . . . 1 2 . . . Hover . | . . . . . . . . . . . . . . . . Flight 2 | . . . . . . . . . . . . . 1 . 1 Utility 61 | 1 2 . . . 2 9 . 5 3 9 13 5 10 . 2 Device 30 | . 1 . . . . 2 . 2 3 5 7 3 6 . 1 Storage 2 | 1 1 . . . . . . . . . . . . . . Processor 4 | . . . . . . 1 . . . . 2 . . . 1 Hackware 8 | . . . . . . 2 . . . . 2 . 4 . . Protection 17 | . . . . . 2 4 . 3 . 4 2 2 . . . Artifact . | . . . . . . . . . . . . . . . . Weapon 54 | 2 1 . 1 . 7 2 2 1 . 9 14 3 11 . 1 Energy Gun 20 | 1 1 . 1 . 1 . 1 . . 6 6 1 2 . . Energy Cannon 1 | . . . . . . . . 1 . . . . . . . Ballistic Gun 17 | 1 . . . . 4 1 1 . . 2 5 2 1 . . Ballistic Cannon . | . . . . . . . . . . . . . . . . Launcher 4 | . . . . . . . . . . . . . 3 . 1 Special Weapon 2 | . . . . . . . . . . 1 . . 1 . . Impact Weapon 2 | . . . . . . . . . . . . . 2 . . Slashing Weapon 8 | . . . . . 2 1 . . . . 3 . 2 . . Piercing Weapon . | . . . . . . . . . . . . . . . . Special Melee Weapon . | . . . . . . . . . . . . . . . . Unidentified Prototypes 4 | . . . . . 1 . . . 2 1 . . . . . Parts Lost 59 | . 1 . . . 1 1 . 6 . 15 6 15 12 . 2 Power 8 | . 1 . . . 1 . . 1 . 2 . 1 1 . 1 Propulsion 17 | . . . . . . . . 2 . 5 2 4 4 . . Utility 19 | . . . . . . 1 . 2 . 5 3 6 1 . 1 Weapon 15 | . . . . . . . . 1 . 3 1 4 6 . . Highest Loss Streak 12 | . 1 . . . 1 1 . 4 . 8 3 12 8 . 1 To Critical Strikes . | . . . . . . . . . . . . . . . . Average Slot Usage (%) 86 | . 92 100 89 85 88 91 98 86 84 90 92 90 39 46 63 Engine 3 | . 13 14 14 14 8 . . . . 3 1 . . . . Core 2 | . . . . . . 7 7 . . . 4 5 . . 5 Treads 26 | . 28 28 28 28 36 30 30 30 30 29 25 21 7 . . Device 7 | . 8 14 14 14 . . . 7 7 10 10 11 5 . 4 Storage 7 | . 14 14 14 14 9 7 7 7 7 7 6 6 3 . . Processor 1 | . . . . . . . 7 . . . 2 6 6 6 12 Hackware 6 | . . . . . . 14 7 7 7 7 11 4 4 26 20 Protection 6 | . . . . . 17 13 15 9 7 6 4 4 . . . Energy Gun 11 | . 14 14 14 14 9 7 6 7 7 14 13 16 3 . . Energy Cannon 1 | . . . . . . . . 3 7 1 . . . . . Ballistic Gun 6 | . 14 14 3 . 5 6 13 11 7 4 7 6 . . . Naked Turns . | . . . . . . . . . . . . . . . . Heaviest Build 133 | 12 87 87 91 91 102 102 102 126 129 133 122 120 94 3 10 Greatest Support 92 | 40 46 46 46 46 84 88 88 92 70 84 92 92 43 6 10 Greatest Overweight (x) 28 | . 2 1 1 1 1 1 1 1 1 1 1 5 28 . . Average Overweight (x) 1 | . . 1 1 1 1 1 1 1 1 1 1 2 . . . Largest Inventory Capacity 25 | 8 25 25 25 25 25 25 25 25 25 25 25 25 25 5 5 Average Capacity 23 | 6 21 25 25 25 25 25 25 25 25 25 25 25 17 5 5 Most Carried 25 | 6 19 21 23 23 25 25 25 25 25 25 25 25 22 5 5 Average Carried 20 | 4 12 20 22 23 23 23 23 22 24 21 21 22 13 5 4 Final Capacity 25 | 8 25 25 25 25 25 25 25 25 25 25 25 25 5 5 5 Final Carried 25 | 6 19 21 23 23 25 24 23 25 25 17 25 18 5 5 5 Class Distribution -------------------- 38% | Scavenger-Tank 26% | Mutant 7% | Hacker-Tank 6% | Hacker-Skirmisher 5% | Tank 4% | Scavenger-Mutant 3% | Scavenger-Skirmisher 3% | Hacker-Mutant Dominant Class ---------------- Mutant | -10/Materials Mutant | -10/Mines Mutant | -10/Exiles Mutant | -9/Mines Tank | -8/Materials Hacker-Tank | -7/Factory Scavenger-Tank | -7/Lower Caves Scavenger-Tank | -7/Lower Caves Scavenger-Tank | -7/Zion Scavenger-Tank | -6/Proximity Caves Hacker-Skirmisher | -6/Factory Scavenger-Tank | -6/Lower Caves Mutant | -6/Lower Caves Hacker-Mutant | -6/Data Miner Hacker-Mutant | -5/Proximity Caves Resources | -11 -10 -10 -10 -9 -8 -7 -7 -7 -7 -6 -6 -6 -6 -6 -5 ----------- Run | Yrd Mat Min Exi Min Mat Fac Low Low Zio Pro Fac Low Low Dat Pro Matter Collected 3136 | 265 224 9 10 . 241 184 81 365 30 407 682 305 281 . 52 Remotely . | . . . . . . . . . . . . . . . . Salvage Created 6508 | 62 589 62 . . 714 1067 164 652 . 695 1438 790 232 . 43 Parts 321 | 2 47 1 . . 51 53 6 24 . 31 58 36 8 . 4 Haulers Intercepted 5 | . 2 . . . 1 . . 1 . . 1 . . . . Recyclers Shooed 2 | . 1 . . . . . . . . . 1 . . . . Parts Field Recycled . | . . . . . . . . . . . . . . . . Retrieved Matter . | . . . . . . . . . . . . . . . . Parts Self-Destructed 116 | . . . . . . . 6 28 1 34 . 32 7 . 8 Prevented 5 | . . . . . . . . 1 . . . 4 . . . Kills | -11 -10 -10 -10 -9 -8 -7 -7 -7 -7 -6 -6 -6 -6 -6 -5 ------- Run | Yrd Mat Min Exi Min Mat Fac Low Low Zio Pro Fac Low Low Dat Pro Combat Hostiles Destroyed 115 | . 13 . . . 11 18 3 10 . 9 19 16 11 . 5 Guns 97 | . 13 . . . 11 18 3 9 . 9 16 15 3 . . AOE 11 | . . . . . . . . . . . . . 6 . 5 Classes Destroyed 19 | 1 7 . . . 3 2 . 1 . 3 1 1 . . . Worker 9 | . . . . . . 1 . . . . 8 . . . . Builder 7 | . 1 . . . 4 . . . . . 2 . . . . Tunneler 1 | . 1 . . . . . . . . . . . . . . Hauler 5 | . 2 . . . 1 . . 1 . . 1 . . . . Recycler 5 | 1 1 . . . . 2 . . . . 1 . . . . Operator 7 | . 1 . . . 3 2 . . . . 1 . . . . Watcher 9 | . 3 . . . 3 3 . . . . . . . . . Swarmer 38 | . 8 . . . 4 4 . 1 . 1 . 9 6 . 5 Grunt 39 | . 5 . . . 2 8 2 7 . . 8 2 5 . . Brawler 5 | . . . . . 1 1 1 1 . . . 1 . . . Duelist 2 | . . . . . . . . . . . . 2 . . . Sentry 9 | . . . . . 3 1 . . . 2 2 1 . . . Demolisher 1 | . . . . . . . . . . 1 . . . . . Specialist 2 | . . . . . . . . . . 2 . . . . . Hunter 6 | . . . . . 1 1 . . . 1 3 . . . . Programmer 9 | . . . . . . 3 . . . 1 5 . . . . Heavy 1 | . . . . . . . . . . . 1 . . . . Behemoth 2 | . . . . . . . . 1 . 1 . . . . . Decomposer 1 | . . . . . . . . . . 1 . . . . . Samaritan 1 | . . . . . . . . . . 1 . . . . . Savage 1 | . . . . . . . . . . . . 1 . . . Best Kill Streak 7 | 1 6 . . . 3 4 3 5 . 2 6 7 4 . 5 Combat Bots Only 7 | . 6 . . . 3 4 3 5 . 2 3 7 4 . 5 Max Kills in Single Turn 4 | 1 1 . . . 1 4 1 2 . 1 3 1 2 . 3 Gunslinging . | . . . . . . . . . . . . . . . . Exploded 3 | . . . . . . . . . . . . . 2 . 3 Melee . | . . . . . . . . . . . . . . . . Uniques/NPCs Destroyed . | . . . . . . . . . . . . . . . . Combat | -11 -10 -10 -10 -9 -8 -7 -7 -7 -7 -6 -6 -6 -6 -6 -5 -------- Run | Yrd Mat Min Exi Min Mat Fac Low Low Zio Pro Fac Low Low Dat Pro Hostile Shots Fired 811 | . 70 . . . 19 48 8 122 . 178 133 125 96 . 12 Missed 214 | . 17 . . . 4 20 3 28 . 40 35 27 34 . 6 Damage Taken 9943 | . 504 . . . 206 451 77 1380 . 2350 1867 1942 1056 . 110 Core 1337 | . 73 . . . 26 99 . 66 . 207 201 335 260 . 70 Absorbed by Shields . | . . . . . . . . . . . . . . . . Redirected to Shielding 43 | . . . . . . . . . . . . 43 . . . Ignored by Resistances 561 | . . . . . . . . 326 . 235 . . . . . Regen/Repaired (Parts) 344 | . . . . . . . . . 203 . 141 . . . . Core Remaining (%) 77 | 100 . . . 70 95 . . . . 46 . . . . . Volleys Fired 312 | 5 56 3 . . 19 20 6 41 . 62 50 32 16 . 2 Largest 4 | 2 2 2 . . 1 1 3 3 . 3 4 4 2 . 1 Hottest 255 | 70 70 70 . . 23 23 106 138 . 210 255 255 75 . 39 Shots Fired 846 | 10 112 6 . . 61 77 21 118 . 121 191 105 22 . 2 Gun 820 | 10 112 6 . . 61 77 21 111 . 113 191 105 13 . . Cannon 15 | . . . . . . . . 7 . 8 . . . . . Launcher 11 | . . . . . . . . . . . . . 9 . 2 Special . | . . . . . . . . . . . . . . . . Kinetic 333 | 5 56 3 . . 19 20 10 70 . 39 67 40 4 . . Thermal 502 | 5 56 3 . . 42 57 11 48 . 82 124 65 9 . . Explosive 11 | . . . . . . . . . . . . . 9 . 2 Electromagnetic . | . . . . . . . . . . . . . . . . Robot Hit Streak 29 | 3 12 4 . . 11 29 10 20 . 9 13 13 3 . 2 Robot Miss Streak 10 | 1 4 1 . . 4 4 3 2 . 10 3 2 3 . . Penetration Max 2 | . . . . . . . . . . . 2 . . . . Secondary Targets 14 | . 4 . . . . . . 2 . . 3 5 . . . Max Gunslinging Chain 1 | . 1 . . . . . . 1 . . 1 1 . . . Autonomous 130 | . . . . . 42 57 8 . . . 23 . . . . Shots Hit Robots 611 | 7 71 4 . . 51 61 14 90 . 88 141 70 13 . 1 Core Hits 307 | 2 31 2 . . 24 33 6 30 . 50 70 31 23 . 5 Critical Kills 5 | . . . . . . . . . . . 3 2 . . . Critical Parts Destroyed 6 | . 1 . . . . . . . . . 1 2 2 . . Critical Strikes 37 | . 7 1 . . . . . 1 . 2 14 10 2 . . Burn 26 | . 6 1 . . . . . 1 . 2 10 6 . . . Destroy 9 | . 1 . . . . . . . . . 4 4 . . . Smash 2 | . . . . . . . . . . . . . 2 . . Melee Attacks 30 | . . . . . 12 2 . . . . 6 . 10 . . Impact 10 | . . . . . . . . . . . . . 10 . . Slashing 20 | . . . . . 12 2 . . . . 6 . . . . Piercing . | . . . . . . . . . . . . . . . . Sneak Attacks 6 | . . . . . 6 . . . . . . . . . . Combat Hostiles . | . . . . . . . . . . . . . . . . Follow-up Attacks . | . . . . . . . . . . . . . . . . Damage Inflicted 15253 | 83 981 50 . . 1557 1832 302 1705 . 1710 3737 1499 1241 . 556 Guns 12444 | 83 948 50 . . 1157 1561 302 1580 . 1580 3571 1499 113 . . Cannons 255 | . . . . . . . . 125 . 130 . . . . . Explosions 1806 | . . . . . . 271 . . . . 145 . 834 . 556 Melee 688 | . . . . . 394 . . . . . . . 294 . . Ramming 60 | . 33 . . . 6 . . . . . 21 . . . . Kinetic 4306 | 46 406 24 . . 173 217 94 920 . 441 1283 657 45 . . Thermal 8664 | 37 542 26 . . 984 1615 208 785 . 1269 2288 842 68 . . Explosive 1535 | . . . . . . . . . . . 145 . 834 . 556 Electromagnetic . | . . . . . . . . . . . . . . . . Impact 294 | . . . . . . . . . . . . . 294 . . Slashing 394 | . . . . . 394 . . . . . . . . . . Piercing . | . . . . . . . . . . . . . . . . Highest Corruption 10 | . . . . . . . . 3 . . 6 10 . . . Average Corruption 5 | . . . . . . . . 2 . . 6 6 . . . Corruption Purged 13 | . . . . . . . . 3 . . . 10 . . . Corruption Blocked . | . . . . . . . . . . . . . . . . Effects 83 | . . . . . . . . 3 . . 26 54 . . . Message Errors 22 | . . . . . . . . 1 . . 5 16 . . . Matter Fused 18 | . . . . . . . . . . . 13 5 . . . Heat Flow Errors 11 | . . . . . . . . . . . . 11 . . . Energy Discharges 7 | . . . . . . . . 1 . . 2 4 . . . Parts Rejected 2 | . . . . . . . . . . . 1 1 . . . Parts Fused 1 | . . . . . . . . . . . . 1 . . . Data Loss (minor) 8 | . . . . . . . . . . . . 8 . . . Data Loss (major) 5 | . . . . . . . . 1 . . 2 2 . . . Misfires 5 | . . . . . . . . . . . . 5 . . . Alerts 1 | . . . . . . . . . . . . 1 . . . Weapon Failures 3 | . . . . . . . . . . . 3 . . . . Overload Shots . | . . . . . . . . . . . . . . . . Overflow Damage 541 | . . . . . 112 103 . . . . 72 . 190 . 64 Projectiles . | . . . . . . . . . . . . . . . . Explosions 262 | . . . . . . 103 . . . . 72 . 23 . 64 Melee 279 | . . . . . 112 . . . . . . . 167 . . Knockbacks 4 | . 1 . . . . . . . . . 1 . 2 . . Impact 4 | . 1 . . . . . . . . . 1 . 2 . . Kinetic . | . . . . . . . . . . . . . . . . Secondary . | . . . . . . . . . . . . . . . . Self-Inflicted Damage 54 | . . . . . . 54 . . . . . . . . . Shots 1 | . . . . . . 1 . . . . . . . . . Rammed 7 | . 3 . . . 1 . . . . . 3 . . . . Targets Rammed 8 | . 3 . . . 1 . . . . . 4 . . . . Kicked . | . . . . . . . . . . . . . . . . Crushed 1 | . . . . . . . . . . . 1 . . . . Highest Temperature 427 | 18 54 27 . . 3 10 201 199 . 427 260 296 49 . . Average Temperature 87 | 9 21 14 . . 3 1 96 123 . 88 111 111 20 . . Received Heat Transfer 2443 | . 144 . . . 54 75 45 468 . 508 306 450 372 . 21 Effects 2 | . . . . . . . . . . . . 2 . . . Interference 2 | . . . . . . . . . . . . 2 . . . Siege Activations . | . . . . . . . . . . . . . . . . Robots Corrupted . | . . . . . . . . . . . . . . . . Combat Hostiles . | . . . . . . . . . . . . . . . . Parts Fried 1 | . . . . . . . . . . . . . 1 . . Impact Corruptions 6 | . . . . . . . . . . . . . 6 . . Robots Melted 5 | . . . . . . . . 1 . . 3 1 . . . Combat Hostiles 5 | . . . . . . . . 1 . . 3 1 . . . Parts Melted 29 | . 3 . . . 2 6 . 5 . 1 9 3 . . . Heat Transferred 16822 | 111 2035 148 . . 1258 1902 296 1628 . 2317 4771 2208 148 . . Parts Sabotaged . | . . . . . . . . . . . . . . . . Parts Stolen . | . . . . . . . . . . . . . . . . Parts Stripped . | . . . . . . . . . . . . . . . . Power Chain Reactions . | . . . . . . . . . . . . . . . . Alert | -11 -10 -10 -10 -9 -8 -7 -7 -7 -7 -6 -6 -6 -6 -6 -5 ------- Run | Yrd Mat Min Exi Min Mat Fac Low Low Zio Pro Fac Low Low Dat Pro Peak Influence 412 | 5 252 10 . . 146 345 . . . . 412 . . . . Initial 65 | . 3 . . . . 65 . . . . 14 . . . . Average 78 | . 56 9 . . 40 140 . . . . 87 . . . . Maximum Alert Level 2 | . 1 . . . . 1 . . . . 2 . . . . Low Security (%) 82 | 100 87 100 . 100 100 54 . . . . 85 . . . . Level 1 17 | . 12 . . . . 45 . . . . 14 . . . . Level 2 . | . . . . . . . . . . . . . . . . Level 3 . | . . . . . . . . . . . . . . . . Level 4 . | . . . . . . . . . . . . . . . . Level 5 . | . . . . . . . . . . . . . . . . High Security . | . . . . . . . . . . . . . . . . Max Security . | . . . . . . . . . . . . . . . . Squads Dispatched 22 | . 2 . . . 2 4 . . . . 13 . 1 . . Investigation 5 | . . . . . . 1 . . . . 4 . . . . Extermination 8 | . . . . . . 3 . . . . 5 . . . . Reinforcement 8 | . 2 . . . 2 . . . . . 4 . . . . Assault 1 | . . . . . . . . . . . . . 1 . . Garrison . | . . . . . . . . . . . . . . . . Intercept . | . . . . . . . . . . . . . . . . Searches Triggered . | . . . . . . . . . . . . . . . . Construction Impeded 1 | . . . . . . . . . . . 1 . . . . Haulers Reinforced . | . . . . . . . . . . . . . . . . Active Scanning Responses . | . . . . . . . . . . . . . . . . Cargo Convoy Interrupts 1 | . . . . . . . . . . . 1 . . . . Stealth | -11 -10 -10 -10 -9 -8 -7 -7 -7 -7 -6 -6 -6 -6 -6 -5 --------- Run | Yrd Mat Min Exi Min Mat Fac Low Low Zio Pro Fac Low Low Dat Pro Distress Signals 26 | . 1 . . . 2 . . . . 23 . . . . . Communications Jammed . | . . . . . . . . . . . . . . . . Distress Signals . | . . . . . . . . . . . . . . . . Times Spotted 165 | . 25 . . . 19 23 3 12 . 12 23 20 18 . 10 Peak Tracking Total 8 | . 3 . . . 4 4 3 5 . 2 3 7 8 . 5 Tactical Retreats 11 | . 2 . . . 1 . . . . . 1 1 6 . . Traps | -11 -10 -10 -10 -9 -8 -7 -7 -7 -7 -6 -6 -6 -6 -6 -5 ------- Run | Yrd Mat Min Exi Min Mat Fac Low Low Zio Pro Fac Low Low Dat Pro Traps Triggered 4 | . 1 . . . . 1 . . . 1 1 . . . . Indirectly . | . . . . . . . . . . . . . . . . Trap Hack Attempts . | . . . . . . . . . . . . . . . . Triggered . | . . . . . . . . . . . . . . . . Disarmed 6 | . . . . . 6 . . . . . . . . . . Reprogrammed . | . . . . . . . . . . . . . . . . Reused . | . . . . . . . . . . . . . . . . Traps Extracted . | . . . . . . . . . . . . . . . . Installed . | . . . . . . . . . . . . . . . . Triggered 7 | . . . . . . . . 1 . . 4 . 2 . . Machines | -11 -10 -10 -10 -9 -8 -7 -7 -7 -7 -6 -6 -6 -6 -6 -5 ---------- Run | Yrd Mat Min Exi Min Mat Fac Low Low Zio Pro Fac Low Low Dat Pro Machines Disabled 11 | . . . . . . 9 . . . 1 1 . . . . Max in Single Turn 9 | . . . . . . 9 . . . 1 1 . . . . Garrison Access 2 | . . . . . . 1 . . . . 1 . . . . Machines Repaired . | . . . . . . . . . . . . . . . . Machines Dismantled . | . . . . . . . . . . . . . . . . Machines Sabotaged . | . . . . . . . . . . . . . . . . Overloaded Fab Kills . | . . . . . . . . . . . . . . . . Hacking | -11 -10 -10 -10 -9 -8 -7 -7 -7 -7 -6 -6 -6 -6 -6 -5 --------- Run | Yrd Mat Min Exi Min Mat Fac Low Low Zio Pro Fac Low Low Dat Pro Machines Accessed 38 | . 7 . 2 . 4 8 . 1 . 1 11 . . 4 . Terminals 21 | . 6 . . . 4 5 . . . 1 5 . . . . Fabricators 4 | . . . . . . 1 . . . . 3 . . . . Repair Stations 1 | . . . . . . . . . . . 1 . . . . Recycling Units 2 | . 1 . . . . . . . . . 1 . . . . Scanalyzers 1 | . . . . . . 1 . . . . . . . . . Garrison Access 2 | . . . . . . 1 . . . . 1 . . . . Total Hacks 105 | . 15 . 2 . 10 19 . 1 . 1 27 . . 30 . Successful 73 | . 8 . 2 . 6 13 . 1 . 1 12 . . 30 . Failed 32 | . 7 . . . 4 6 . . . . 15 . . . . Catastrophic 9 | . 1 . . . 1 3 . . . . 4 . . . . Database Lockouts . | . . . . . . . . . . . . . . . . Manual 25 | . 9 . 1 . 4 5 . . 1 2 3 . . . . Terminals 50 | . 14 . . . 10 13 . . . 1 12 . . . . Fabricators 8 | . . . . . . 2 . . . . 6 . . . . Repair Stations 4 | . . . . . . . . . . . 4 . . . . Recycling Units 5 | . 1 . . . . . . . . . 4 . . . . Scanalyzers 2 | . . . . . . 2 . . . . . . . . . Garrison Access 3 | . . . . . . 2 . . . . 1 . . . . Terminal Hacks 57 | . 6 . 2 . 6 7 . 1 . 1 4 . . 30 . Record 13 | . . . 1 . . . . . . 1 . . . 11 . Part Schematic 12 | . . . . . . . . . . . 1 . . 11 . Robot Schematic 5 | . . . . . . . . . . . . . . 5 . Prototype ID Bank 3 | . . . . . . . . . . . . . . 3 . Open Door 1 | . . . . . . . . 1 . . . . . . . Open DSF 1 | . . . . . . 1 . . . . . . . . . Level Access Points 1 | . . . . . 1 . . . . . . . . . . Branch Access Points 1 | . . . . . . 1 . . . . . . . . . Machine Index 1 | . . . . . . . . . . . 1 . . . . Terminal Index 3 | . 1 . . . 1 1 . . . . . . . . . Alert Level 1 | . . . . . 1 . . . . . . . . . . Unreport Threat 7 | . 2 . . . . 3 . . . . 2 . . . . Locate Traps 1 | . 1 . . . . . . . . . . . . . . Disarm Traps 1 | . . . . . 1 . . . . . . . . . . Dispatch Records 1 | . 1 . . . . . . . . . . . . . . Recall Reinforcements 1 | . 1 . . . . . . . . . . . . . . Hauler Manifests 1 | . . . . . 1 . . . . . . . . . . Registered Components 1 | . . . . . 1 . . . . . . . . . . Registered Prototypes 1 | . . . . . . 1 . . . . . . . . . Derelict Proto ID Bank 1 | . . . 1 . . . . . . . . . . . . Fabricator Hacks 4 | . . . . . . 2 . . . . 2 . . . . Network Status 2 | . . . . . . 1 . . . . 1 . . . . Load Schematic 1 | . . . . . . . . . . . 1 . . . . Build 1 | . . . . . . 1 . . . . . . . . . Repair Station Hacks 2 | . . . . . . . . . . . 2 . . . . Scan Component 1 | . . . . . . . . . . . 1 . . . . Repair 1 | . . . . . . . . . . . 1 . . . . Recycling Unit Hacks 4 | . 1 . . . . . . . . . 3 . . . . Retrieve Matter 1 | . . . . . . . . . . . 1 . . . . Retrieve Components 3 | . 1 . . . . . . . . . 2 . . . . Scanalyzer 2 | . . . . . . 2 . . . . . . . . . Insert Component 1 | . . . . . . 1 . . . . . . . . . Analyze 1 | . . . . . . 1 . . . . . . . . . Garrison Access Hacks 2 | . . . . . . 1 . . . . 1 . . . . Seal Access 2 | . . . . . . 1 . . . . 1 . . . . Unauthorized Hacks 2 | . 1 . . . . 1 . . . . . . . . . Terminals 2 | . 1 . . . . 1 . . . . . . . . . Botnet 2 | . 1 . . . . 1 . . . . . . . . . Fabricators . | . . . . . . . . . . . . . . . . Repair Stations . | . . . . . . . . . . . . . . . . Recycling Units . | . . . . . . . . . . . . . . . . Scanalyzers . | . . . . . . . . . . . . . . . . Garrison Access . | . . . . . . . . . . . . . . . . Data Cores Recovered 4 | . . . . . 1 2 . . . . 1 . . . . Used 2 | . . . . . 1 1 . . . . . . . . . Hacking Detections 25 | . 5 . . . 4 7 . . . 1 8 . . . . Full Trace Events 3 | . . . . . . 1 . . . . 2 . . . . Feedback Events . | . . . . . . . . . . . . . . . . Feedback Blocked . | . . . . . . . . . . . . . . . . Robot Schematics Acquired 8 | . . . . . . . . . 3 . . . . 5 . Robots Built . | . . . . . . . . . . . . . . . . Authchips . | . . . . . . . . . . . . . . . . Time . | . . . . . . . . . . . . . . . . Total Robot Build Rating . | . . . . . . . . . . . . . . . . Part Schematics Acquired 28 | . . . . . . 1 . . 15 . 1 . . 11 . Parts Built 1 | . . . . . . 1 . . . . . . . . . Authchips . | . . . . . . . . . . . . . . . . Time 47 | . . . . . . 47 . . . . . . . . . Total Part Build Rating 5 | . . . . . . 5 . . . . . . . . . Parts Repaired 1 | . . . . . . . . . . . 1 . . . . Time 19 | . . . . . . . . . . . 19 . . . . Parts Recycled . | . . . . . . . . . . . . . . . . Recycled Matter . | . . . . . . . . . . . . . . . . Retrieved Matter . | . . . . . . . . . . . . . . . . Retrieved Components 10 | . 10 . . . . . . . . . . . . . . Parts Scanalyzed 1 | . . . . . . 1 . . . . . . . . . Part Schematics Acquired 1 | . . . . . . 1 . . . . . . . . . Parts Damaged . | . . . . . . . . . . . . . . . . Bothacking | -11 -10 -10 -10 -9 -8 -7 -7 -7 -7 -6 -6 -6 -6 -6 -5 ------------ Run | Yrd Mat Min Exi Min Mat Fac Low Low Zio Pro Fac Low Low Dat Pro Used RIF Installer . | . . . . . . . . . . . . . . . . Robots Hacked . | . . . . . . . . . . . . . . . . Non-combat . | . . . . . . . . . . . . . . . . Combat . | . . . . . . . . . . . . . . . . Robot Hacks Applied . | . . . . . . . . . . . . . . . . Relay Couplers Released . | . . . . . . . . . . . . . . . . Fabnet Peak Effective % . | . . . . . . . . . . . . . . . . Robots Rewired . | . . . . . . . . . . . . . . . . Allies Hacked . | . . . . . . . . . . . . . . . . Hacks Repelled . | . . . . . . . . . . . . . . . . Allies | -11 -10 -10 -10 -9 -8 -7 -7 -7 -7 -6 -6 -6 -6 -6 -5 -------- Run | Yrd Mat Min Exi Min Mat Fac Low Low Zio Pro Fac Low Low Dat Pro Total Allies 5 | . . . . . . . . . 4 . . . . . 1 Largest Group 4 | . . . . . . . . . 4 4 . . . . 1 Highest-Rated Group 110 | . . . . . . . . . 110 110 . . . . 96 Highest-Rated Ally 96 | . . . . . . . . . 31 31 . . . . 96 Total Orders 5 | . . . . . . . . . . . 2 . 3 . . EXPLORE 3 | . . . . . . . . . . . . . 3 . . RETURN 2 | . . . . . . . . . . . 2 . . . . Ally Attacks 39 | . . . . . . . . . . 22 . . . . 17 Total Damage 1211 | . . . . . . . . . . 557 . . . . 654 Kills 8 | . . . . . . . . . . 3 . . . . 5 Allies Corrupted . | . . . . . . . . . . . . . . . . Allies Melted . | . . . . . . . . . . . . . . . . Intel | -11 -10 -10 -10 -9 -8 -7 -7 -7 -7 -6 -6 -6 -6 -6 -5 ------- Run | Yrd Mat Min Exi Min Mat Fac Low Low Zio Pro Fac Low Low Dat Pro Robot Analysis Total . | . . . . . . . . . . . . . . . . Derelict Logs Recovered 6 | . . 1 . . . . . 1 1 . . 1 1 . 1 Drone Launches 10 | . . . . . . . . . . . 4 . 6 . . Drone Recoveries 8 | . . . . . . . . . . . 4 . 4 . . Exploration | -11 -10 -10 -10 -9 -8 -7 -7 -7 -7 -6 -6 -6 -6 -6 -5 ------------- Run | Yrd Mat Min Exi Min Mat Fac Low Low Zio Pro Fac Low Low Dat Pro Turns Passed 19354 | 179 2095 110 1083 68 1667 1893 472 986 2009 2419 2603 2338 1182 34 216 Spaces Moved 7918 | 99 820 42 450 29 460 630 188 340 823 895 857 1084 844 85 272 Core 156 | 9 . . . . . . . . . . . . 147 . . Treads 6486 | 90 820 42 450 29 460 630 188 340 823 895 857 637 225 . . Legs . | . . . . . . . . . . . . . . . . Wheels 533 | . . . . . . . . . . . . 447 86 . . Hover . | . . . . . . . . . . . . . . . . Flight 743 | . . . . . . . . . . . . . 386 85 272 Fastest Speed 34 | 50 160 240 240 240 232 240 240 236 240 232 230 140 40 40 34 Average Speed 207 | 150 228 240 240 240 239 240 240 238 240 238 230 201 109 40 34 Slowest Speed 1450 | 160 320 240 240 240 240 240 240 240 240 240 241 241 1450 40 40 Overloaded Moves . | . . . . . . . . . . . . . . . . Propulsion Burnouts . | . . . . . . . . . . . . . . . . Robots Hopped . | . . . . . . . . . . . . . . . . Cave-ins Triggered 1 | . . . . . . . . . . . 1 . . . . Exploration Rate (%) 52 | 6 97 8 89 13 42 20 50 54 82 58 21 96 92 71 40 Regions Visited 15 Branch Regions 11 Pre-discovered Areas 4 | . . 1 . . . . . . 1 . . 1 . 1 . Known Exits Taken 7 | . . . . . 1 1 . 1 . . 1 1 1 1 . Unknown Exits Taken 8 | 1 1 1 1 1 . . 1 . 1 1 . . . . . Scrap Searched 15 | . . . . . . . . 5 1 . . 2 4 . 3 Spaces Dug 12 | . . . . . 6 1 . . . . 5 . . . . Terrain Destroyed 134 | . . . . . 14 21 2 . . . 45 6 33 . 13 Melee 12 | . . . . . 6 1 . . . . 5 . . . . Projectile 31 | . . . . . 8 8 2 . . . 7 6 . . . AOE 90 | . . . . . . 12 . . . . 32 . 33 . 13 Terrain Rammed . | . . . . . . . . . . . . . . . . Walls Destroyed . | . . . . . . . . . . . . . . . . Machines Disabled . | . . . . . . . . . . . . . . . . Actions | -11 -10 -10 -10 -9 -8 -7 -7 -7 -7 -6 -6 -6 -6 -6 -5 --------- Run | Yrd Mat Min Exi Min Mat Fac Low Low Zio Pro Fac Low Low Dat Pro Total 10180 | 117 924 46 454 28 987 992 201 432 857 1081 1346 1169 1070 84 392 Wait 1607 | 1 28 . 2 . 454 314 4 28 27 82 369 32 158 . 108 Move 7903 | 98 819 41 449 28 459 629 187 339 822 894 856 1083 843 84 272 Hop . | . . . . . . . . . . . . . . . . Pick Up 76 | 7 11 2 . . 11 5 . 9 2 5 11 6 5 . 2 Fast Attach 43 | 5 2 . 1 . 4 1 . . 1 5 10 1 9 . 4 Attach 71 | 1 1 . . . 4 3 2 7 . 16 12 11 13 . 1 Detach 27 | . . . 2 . 2 1 1 1 . 2 8 . 9 . 1 Swap 52 | . 3 . . . 10 8 . 4 3 7 14 2 1 . . Drop 47 | . 1 . . . 11 7 1 3 2 6 6 2 6 . 2 Fire 312 | 5 56 3 . . 19 20 6 41 . 62 50 32 16 . 2 Melee 30 | . . . . . 12 2 . . . . 6 . 10 . . Ram . | . . . . . . . . . . . . . . . . Kick . | . . . . . . . . . . . . . . . . Crush 8 | . 3 . . . 1 . . . . . 4 . . . . Escape Stasis 4 | . . . . . . 2 . . . 2 . . . . . Rewire . | . . . . . . . . . . . . . . . . Trap . | . . . . . . . . . . . . . . . . Miscellaneous . | . . . . . . . . . . . . . . . . Route ------- -11/Scrapyard -10/Materials (discovered 6 exits: [*Mat x3] / [*Min x2] / [*Sub]) -10/Mines -10/Exiles -9/Mines -8/Materials (discovered 3 exits: *Fac x3) -7/Factory (discovered 4 exits: Sto x2 / *Low x2) -7/Lower Caves -7/Lower Caves (discovered 2 exits: *Fac / *Zio) -7/Zion -6/Proximity Caves -6/Factory (discovered 2 exits: *Fac / *Low) -6/Lower Caves -6/Lower Caves -6/Data Miner -5/Proximity Caves History --------- Turn | Location | Event 6 | -11/Scrapyard | Discovered new exit (range 16) 180 | -11/Scrapyard | Entered Materials 314 | -10/Materials | Build established: Mutant 619 | -10/Materials | Discovered new exit (range 16) 813 | -10/Materials | Discovered new exit (range 8) 1135 | -10/Materials | Discovered new exit (range 11) 1298 | -10/Materials | Discovered new exit (range 15) 1545 | -10/Materials | Discovered new exit (range 14) 2188 | -10/Materials | Discovered new exit (range 13) 2275 | -10/Materials | Entered Mines 2358 | -10/Mines | Learned location of Recycling (-7) 2375 | -10/Mines | Deemed a non-threat by the Exiles lab entrance 2375 | -10/Mines | Discovered new exit (range 5) 2385 | -10/Mines | Entered Exiles 2443 | -10/Exiles | Met 8R-AWN 2484 | -10/Exiles | Met EX-HEX 2556 | -10/Exiles | Met EX-BIN 2585 | -10/Exiles | Aligned with FarCom system 2587 | -10/Exiles | Given EX-Vault access code 2669 | -10/Exiles | Opened EX-Vault 2684 | -10/Exiles | Found AWS/Thermal 2731 | -10/Exiles | Warned to stay clear of 0b10 Research branches 2803 | -10/Exiles | Met EX-DEC 2991 | -10/Exiles | Visited The Gauntlet 3448 | -10/Exiles | Discovered new exit (range 10) 3468 | -10/Exiles | Left Exiles lab with AWS/Thermal 3468 | -10/Exiles | Entered Mines 3514 | -9/Mines | Discovered new exit (range 10) 3536 | -9/Mines | Entered Materials 3536 | -8/Materials | Evolved 4 slots: Propulsion x2, Utility x1, Weapon x1 3876 | -8/Materials | Build established: Tank 4479 | -8/Materials | Build established: Mutant 5085 | -8/Materials | Identified exit to Factory 5203 | -8/Materials | Entered Factory 5203 | -7/Factory | Evolved 2 slots: Utility x2 5493 | -7/Factory | Build established: Hacker-Tank 5969 | -7/Factory | Fabricated Hvy. Reactive Plating (x1) 6382 | -7/Factory | Identified exit to Storage 6382 | -7/Factory | Identified exit to Lower Caves 7096 | -7/Factory | Entered Lower Caves 7096 | -7/Lower Caves | Spotted B-75 Beast 7466 | -7/Lower Caves | Build established: Scavenger-Tank 7551 | -7/Lower Caves | Discovered new exit (range 8) 7568 | -7/Lower Caves | Entered another Lower Caves area 7601 | -7/Lower Caves | Discovered new exit (range 11) 7611 | -7/Lower Caves | Lost 4 parts (1p1n2u) 7756 | -7/Lower Caves | Identified exit to Zion 7861 | -7/Lower Caves | Spotted B-75 Beast 7921 | -7/Lower Caves | Destroyed B-75 Beast 7966 | -7/Lower Caves | Encountered a Warlord checkpoint 8235 | -7/Lower Caves | Found Imp. Powered Armor 8554 | -7/Lower Caves | Entered Zion 8607 | -7/Zion | Given the Hacking Drone Bay 8608 | -7/Zion | Found Prototype Device 8610 | -7/Zion | Identified Hacking Drone Bay 8800 | -7/Zion | Learned location of Data Miner (-6) 8971 | -7/Zion | Gained Derelict followers 9498 | -7/Zion | Learned location of 1 exit from Factory 9810 | -7/Zion | Rebuked by Imprinter 10530 | -7/Zion | Discovered new exit (range 15) 10563 | -7/Zion | Entered Proximity Caves 10563 | -6/Proximity Caves | Accompanied by 4 allies 10872 | -6/Proximity Caves | Spotted B-75 Beast 11054 | -6/Proximity Caves | Destroyed B-75 Beast 11156 | -6/Proximity Caves | Attracted the attention of an 0b10 checkpoint 11318 | -6/Proximity Caves | Lost 4 parts (1p1n1u1w) 11862 | -6/Proximity Caves | Acquired the password to a Derelict Tinkerer's latest research 11876 | -6/Proximity Caves | Found Prototype Special Weapon 11876 | -6/Proximity Caves | Identified Molecular Deconstructor 12054 | -6/Proximity Caves | Caught by Unaware searching for contraband prototypes 12127 | -6/Proximity Caves | Core integrity fell below 50% 12186 | -6/Proximity Caves | Lost 8 parts (4n2u2w) 12404 | -6/Proximity Caves | Build established: Scavenger-Mutant 12612 | -6/Proximity Caves | Caught by Unaware searching for contraband prototypes 12809 | -6/Proximity Caves | Build established: Scavenger-Tank 12945 | -6/Proximity Caves | Discovered new exit (range 14) 12982 | -6/Proximity Caves | Entered Factory 12982 | -6/Factory | Evolved 2 slots: Utility x1, Weapon x1 12983 | -6/Factory | Identified exit to Factory 13283 | -6/Factory | Build established: Scavenger-Skirmisher 13291 | -6/Factory | Repaired Adv. Treads 14003 | -6/Factory | Build established: Hacker-Skirmisher 14288 | -6/Factory | Cargo convoy interrupted 14750 | -6/Factory | Crushed by falling debris 14781 | -6/Factory | Lost 3 parts (3u) 15045 | -6/Factory | Build established: Skirmisher 15498 | -6/Factory | Discovered new exit (range 6) 15550 | -6/Factory | Build established: Scavenger-Tank 15585 | -6/Factory | Identified exit to Lower Caves 15585 | -6/Factory | Entered Lower Caves 16404 | -6/Lower Caves | Spotted B-75 Beast 17177 | -6/Lower Caves | Attracted the attention of an 0b10 outpost 17198 | -6/Lower Caves | System corruption reached 10% 17226 | -6/Lower Caves | Core integrity fell below 50% 17249 | -6/Lower Caves | Destroyed 7 combat bots 17252 | -6/Lower Caves | Lost 12 parts (1p3n5u3w) 17364 | -6/Lower Caves | Ambushed by wild Derelicts 17497 | -6/Lower Caves | Build established: Scavenger-Gunner 17904 | -6/Lower Caves | Discovered new exit (range 13) 17921 | -6/Lower Caves | Identified exit to Lower Caves 17923 | -6/Lower Caves | Entered another Lower Caves area 17926 | -6/Lower Caves | Spotted B-75 Beast 17960 | -6/Lower Caves | Build established: Scavenger-Mutant 18361 | -6/Lower Caves | Build established: Mutant 18494 | -6/Lower Caves | Encountered a Warlord checkpoint 18676 | -6/Lower Caves | Lost 8 parts (1p2n5w) 18865 | -6/Lower Caves | Attracted the attention of an 0b10 outpost 18865 | -6/Lower Caves | Core integrity fell below 20% 18930 | -6/Lower Caves | Learned Factory emergency access door positions 19022 | -6/Lower Caves | Discovered new exit (range 7) 19104 | -6/Lower Caves | Identified exit to Data Miner 19105 | -6/Lower Caves | Entered Data Miner 19105 | -6/Data Miner | Discovered new exit (range 6) 19113 | -6/Data Miner | Met Data Miner 19122 | -6/Data Miner | Learned location of Section 7 (-3) 19122 | -6/Data Miner | Acquired the access code to Warlord's prototype stash 19129 | -6/Data Miner | Received God Mode back door access code from Data Miner 19133 | -6/Data Miner | Build established: Hacker-Mutant 19139 | -6/Data Miner | Identified exit to Proximity Caves 19139 | -6/Data Miner | Entered Proximity Caves 19166 | -5/Proximity Caves | Learned Factory terminal intel 19206 | -5/Proximity Caves | Escorted by Enhanced Grunt 19355 | -5/Proximity Caves | Spotted B-75 Beast 19355 | -5/Proximity Caves | Destroyed by B-75 Beast with Heavy Plasma Cannon Last Messages --------------- 19174_ Found Adv. System Shield. 19174_ Found Machine Analyzer. 19174_ Found 19 Matter. 19175_ Acquired 19 matter. 19175_ Dropped Mak. Laser. 19175_ Acquired Adv. Hacking Suite. 19177_ Dropped Neutrino Core. 19177_ Acquired Adv. System Shield. 19206_ Enhanced Grunt: "Protecting LRC-V3." 19221_ Slug penetrates Wall. 19222_ Enhanced Grunt suffers critical hit (Burn). 19223_ Slug penetrates Enhanced Grunt. 19317_ Searching scrap... 19317_ Found Hyp. Gauss Cannon. 19317_ Found Tesla Rifle. 19317_ Found Lgt. Angular Momentum Engine. 19317_ Found 22 Matter. 19319_ G-50 Soldier destroyed. 19334_ Lgt. Angular Momentum Engine fries itself beyond repair. 19355_ Lgt. Nuclear Core destroyed. Map ----- +----------------------------------------------------+ | ????????????? #? #????# ##?????????? | | ???????????? #### ? #????## ####???????? | | ??????????# ???? ?? ####?????### ##??????? | | ??????????# ????? ?? ????????##### ##?????? | | ?????????? ?????? ? ???????## ## #?????? | | ????????? ??????? ? ???????# #?????? | | ?????????? ???????# ? ???????## ##?????? | | ??????????????????? ?#????????## #??????? | | ???????????????????????????????## ##### ##?????? | | ????????????????????????????????# #???# #?????? | | ????????????????????????????##### ##??## #????? | | ?????????????????????????#### ##?######????? | | ?????????????????????????# ## #??????? | | ????????????????????????# ##?????? | | ????????????????????? #### #?????? | | ???????????????????? ##????## #?????? | | ????????????????????? ?????????# ##?????? | | ????????????????????? ??????????## ##??????? | | ???????????????????????????????## ##???????? | | ??????????????????????????###### #????????? | | ??????????????????????????# ## #????????? | | ?????????????????????????## ## #????????? | | ????????????????????????## ## ##????????? | | ????????????????????????# ## ## ##?????????? | | ????????????????????##### #### ####??????????? | | ????????????????????# @####??# #?????????????? | | ????????????????????# #?????## #?????????????? | | ????????????????????# #??????###?????????????? | | ??????????????????? ??????????????????????? | | ??????????????????# ??????????????????????? | | ?????????????????# ??????????????????????? | | ?????????????????# ??????????????????????? | | ???????????????? ?????????????????????? | | ??????????????? $ #?????????????????????? | | ?????????????? BB #?????????????????????? | | ??????????????g BB #?????????????????????? | | ??????????????## ?????????????????????? | | ???????????????? #?????????????????????? | | ?????????????????? #??????????????????????? | | ????????????????????? #???????????????????????? | | ??????????????????????? ????????????????????????? | | ?????????????????????????????????????????????????? | | ?????????????????????????????????????????????????? | | ?????????????????????????????????????????????????? | | ?????????????????????????????????????????????????? | | ?????????????????????????????????????????????????? | | ?????????????????????????????????????????????????? | | ?????????????????????????????????????????????????? | | ?????????????????????????????????????????????????? | | ?????????????????????????????????????????????????? | +----------------------------------------------------+ Best States ------------- Heat Dissipation 64 Coolant Potential 65 Energy Generation 18 Energy Capacity 170 Matter Stores 300 Matter Capacity 300 Sight Range 20 Terrain Scan Density 10 Additional Mass Support 6 Corruption Block 9 Armor Coverage 600 Resistance: KI 40 Weapon Shielding 33 Weapon Cycling 15 Melee Speed Boost 20 Evasion (%) 63 Core Analysis 6 Recoil Reduction 4 Energy Filtering 50 Offensive Hacking 41 Defensive Hacking 10 Item Schematics ----------------- Hvy. Reactive Plating | -7/Factory | Scanalyzed Xenon Bombardment Thruster | -7/Zion | Archive System Guard | -7/Zion | Archive Gravmag System | -7/Zion | Archive Arc Thrower | -7/Zion | Archive Imp. Field Recycling Unit | -7/Zion | Archive Imp. Component Analysis Suite | -7/Zion | Archive Adv. Drone Bay | -7/Zion | Archive Flak Gun | -7/Zion | Archive 0b10 Decoder Chip [Scout] | -7/Zion | Archive Hvy. Battle Rifle | -7/Zion | Archive Flexi-carbon Leg | -7/Zion | Archive Arm. Huge Wheel | -7/Zion | Archive Hvy. Pick | -7/Zion | Archive Imp. System Restoration Module | -7/Zion | Archive Adv. Assault Cannon | -7/Zion | Archive Hvy. Armor Plating | -6/Factory | Hacked Combat Drone Bay | -6/Data Miner | Free Lgt. Regenerative Plating | -6/Data Miner | Free Cld. Nuclear Pulse Thruster | -6/Data Miner | Free Prc. Energy Filter | -6/Data Miner | Free Neutron Cannon | -6/Data Miner | Free Imp. Linear Gravjet | -6/Data Miner | Free Adv. Particle Charger | -6/Data Miner | Free Adv. Datajack | -6/Data Miner | Free Imp. Plasma Cutter | -6/Data Miner | Free Adv. Thermal Shield | -6/Data Miner | Free Mic. Antimatter Reactor | -6/Data Miner | Free Robot Schematics ------------------ G-47 Trooper | -7/Zion | Archive K-01 Serf | -7/Zion | Archive L-31 Rogue | -7/Zion | Archive R-10 Processor | -6/Data Miner | Free I-36 Angel | -6/Data Miner | Free M-22 Extractor | -6/Data Miner | Free G-50 Soldier | -6/Data Miner | Free Y-64 Sentinel | -6/Data Miner | Free Fabricated ------------ Hvy. Reactive Plating | x1 | -7/Factory | Preloaded Alien Tech Used ----------------- None Achievements -------------- None Challenges ------------ None Game ------ Seed WeldingHardlightFalx Manual? 0 Play Time 01:57:06 Cumulative 112.2 hours Start 2024.04.10 @ 01:05:44 End 2024.04.10 @ 05:22:53 Sessions 3 Manual Loads 0 Difficulty Rogue Special Mode None Game No. 59 Rogue 21 Adventurer 16 Explorer 22 Win Type - Total 19 Types 14/4/0/0/0/0/0/1/0 Lore% 68 Gallery% 73 Achievement% 68 Wizard Run 0 Options --------- Layout 0 ASCII 0 Keyboard 0 Movement Mouse Keybinds 0 Fullscreen 1 Font 24/Terminus Map View 76x50 Zoom Use 0% Tactical HUD 1 Map Filters NONE Filters NONE Steam 1 RUN: 15ef4840-4f90-4fcf-a32e-2db5d66e48d6